bitfinex/quotes_SOLUSD_20241107
["timestamp","ask_amount","ask_price","bid_price","bid_amount"]
[1731000845843,15.7925835,194.88,194.82,20.0]
[1731000846028,22.8563,194.93,194.83,15.7925835]
[1731000846225,15.7925835,194.9,194.84,20.0]
[1731000847352,15.7925835,194.9,194.83,15.7925835]
[1731000847639,25.25471138,194.92,194.85,25.25471138]
[1731000847851,25.25471138,194.92,194.79,43.876884]
[1731000847852,25.25471138,194.91,194.81,20.0]
[1731000848146,25.25471138,194.92,194.79,43.876884]
[1731000848327,25.25471138,194.92,194.85,25.25471138]
[1731000849036,25.25471138,194.9,194.85,20.0]
[1731000849540,25.25471138,194.91,194.85,20.0]
[1731000849850,22.8563,194.93,194.87,25.25471138]
[1731000850138,22.8563,194.93,194.85,20.0]
[1731000850139,25.25471138,194.91,194.85,20.0]
[1731000850345,7.106079,194.99,194.79,8.20328145]
[1731000850346,25.25471138,194.92,194.81,0.1]
[1731000850532,25.25471138,194.92,194.85,25.25471138]
[1731000850729,25.25471138,194.91,194.85,20.0]
[1731000850939,25.25471138,194.92,194.85,45.25471138]
[1731000851141,22.091,194.96,194.85,20.0]
[1731000851142,25.25471138,194.91,194.85,20.0]
[1731000851334,25.25471138,194.91,194.8,20.0]
[1731000851648,25.25471138,194.87,194.75,5.93777964]
[1731000851941,25.25471138,194.86,194.79,25.25471138]
[1731000852133,22.191,194.96,194.75,5.93777964]
[1731000852134,25.25471138,194.87,194.8,25.25471138]
[1731000852642,25.25471138,194.89,194.82,25.25471138]
[1731000852844,25.25471138,194.88,194.76,20.22549]
[1731000853049,25.25471138,194.9,194.83,25.25471138]
[1731000853536,25.25471138,194.89,194.82,25.25471138]
[1731000854034,25.25471138,194.88,194.81,25.25471138]
[1731000854442,25.25471138,194.86,194.79,25.25471138]
[1731000854621,0.1,194.93,194.78,25.25471138]
[1731000854622,25.25471138,194.85,194.78,25.25471138]
[1731000855027,25.25471138,194.83,194.76,25.25471138]
[1731000855841,25.25471138,194.85,194.78,25.25471138]
[1731000856040,46.79881138,194.86,194.8,0.12549]
[1731000856237,21.5441,194.86,194.8,45.38020138]
[1731000856445,25.25471138,194.87,194.8,45.38020138]
[1731000857236,25.25471138,194.84,194.77,20.0]
[1731000857435,25.25471138,194.85,194.78,25.25471138]
[1731000857633,25.25471138,194.85,194.79,0.12549]
[1731000857842,25.25471138,194.86,194.79,25.38020138]
[1731000858233,25.25471138,194.88,194.82,25.25471138]
[1731000858543,25.25471138,194.89,194.82,25.25471138]
[1731000858735,25.25471138,194.89,194.83,20.0]
[1731000859051,25.25471138,194.87,194.8,25.25471138]
[1731000859231,25.25471138,194.87,194.81,20.0]
[1731000859958,25.25471138,194.88,194.82,20.0]
[1731000860454,25.25471138,194.87,194.82,20.0]
[1731000860746,21.866,194.91,194.82,20.0]
[1731000860747,21.866,194.97,194.84,25.25471138]
[1731000861052,21.866,194.97,194.9,20.0]
[1731000861053,47.12071138,194.97,194.9,20.0]
[1731000861232,25.25471138,194.96,194.9,20.0]
[1731000861958,25.25471138,194.95,194.9,20.0]
[1731000862273,25.25471138,194.93,194.86,25.25471138]
[1731000862435,25.25471138,194.93,194.84,20.0]
[1731000862436,25.25471138,194.94,194.87,45.25471138]
[1731000862837,25.25471138,194.96,194.89,25.25471138]
[1731000863039,21.866,194.97,194.9,20.0]
[1731000863040,25.25471138,194.94,194.9,20.0]
[1731000863245,25.25471138,194.93,194.9,20.0]
[1731000863554,25.25471138,194.94,194.87,45.25471138]
[1731000863851,25.25471138,194.93,194.84,20.0]
[1731000864056,25.25471138,194.9,194.86,20.0]
[1731000864351,25.25471138,194.9,194.8,0.1]
[1731000864352,25.25471138,194.87,194.8,25.25471138]
[1731000865540,25.25471138,194.87,194.81,0.12549]
[1731000865857,25.25471138,194.88,194.82,20.0]
[1731000866033,25.25471138,194.88,194.82,20.1]
[1731000866537,25.25471138,194.88,194.82,20.0]
[1731000866729,25.25471138,194.89,194.81,0.22549]
[1731000866931,25.25471138,194.9,194.83,45.25471138]
[1731000867254,21.866,194.97,194.86,20.0]
[1731000867437,25.25471138,194.92,194.84,0.1]
[1731000867639,21.866,194.97,194.83,20.0]
[1731000867640,25.25471138,194.89,194.83,20.0]
[1731000867838,25.25471138,194.9,194.83,45.25471138]
[1731000868057,25.25471138,194.9,194.84,0.1]
[1731000868434,25.25471138,194.9,194.84,20.1]
[1731000868634,25.25471138,194.9,194.84,20.0]
[1731000868855,25.25471138,194.91,194.84,45.35471138]
[1731000869247,25.25471138,194.91,194.84,45.25471138]
[1731000869441,21.866,194.97,194.84,20.1]
[1731000869442,15.77829402,194.9,194.84,20.1]
[1731000870253,15.77829402,194.9,194.84,20.0]
[1731000870458,15.77829402,194.89,194.83,20.0]
[1731000870758,15.77829402,194.89,194.83,0.1]
[1731000870945,15.77829402,194.89,194.84,20.1]
[1731000871152,15.77829402,194.89,194.84,40.1]
[1731000871644,15.77829402,194.9,194.84,40.0]
[1731000871844,15.77829402,194.89,194.84,40.0]
[1731000872039,15.77829402,194.88,194.84,40.0]
[1731000872252,15.77829402,194.85,194.8,20.0]
[1731000872451,15.77829402,194.85,194.81,0.12549]
[1731000872648,15.77829402,194.86,194.82,20.0]
[1731000872850,15.77829402,194.85,194.82,20.0]
[1731000873165,15.77829402,194.84,194.78,23.88157547]
[1731000873339,15.77829402,194.84,194.79,0.12549]
[1731000873541,15.77829402,194.85,194.79,0.12549]
[1731000873768,15.77829402,194.85,194.79,36.42746002]
[1731000873942,15.77829402,194.85,194.79,20.649166]
[1731000874450,15.77829402,194.85,194.8,20.0]
[1731000875964,15.77829402,194.84,194.8,20.0]
[1731000876266,15.77829402,194.84,194.74,6.61736298]
[1731000876267,15.77829402,194.81,194.7,0.2]
[1731000876454,15.77829402,194.8,194.74,20.528348]
[1731000876761,15.77829402,194.8,194.75,0.12549]
[1731000876948,15.77829402,194.81,194.75,0.12549]
[1731000877154,15.77829402,194.81,194.75,15.90378402]
[1731000877350,15.77829402,194.81,194.75,0.12549]
[1731000877551,15.77829402,194.83,194.75,0.12549]
[1731000877756,15.77829402,194.83,194.76,15.77829402]
[1731000877961,15.77829402,194.83,194.75,0.12549]
[1731000878245,15.77829402,194.82,194.76,15.77829402]
[1731000878651,15.77829402,194.83,194.77,20.0]
[1731000878968,15.77829402,194.85,194.78,35.77829402]
[1731000879144,21.7857,194.86,194.8,15.77829402]
[1731000879467,21.7857,194.86,194.78,20.0]
[1731000879672,37.5710967,194.86,194.76,20.0]
[1731000880549,21.7857,194.86,194.77,0.1]
[1731000880859,21.7857,194.86,194.76,20.0]
[1731000881046,21.7857,194.86,194.77,0.1]
[1731000881246,21.7857,194.86,194.76,20.1]
[1731000881449,21.7857,194.86,194.76,20.0]
[1731000882166,22.1359,194.92,194.76,20.1]
[1731000882347,15.7853967,194.89,194.79,0.1]
[1731000882655,15.7853967,194.91,194.8,0.1]
[1731000883253,15.7853967,194.91,194.79,0.2]
[1731000883767,15.7853967,194.91,194.81,0.1]
[1731000884064,15.7853967,194.91,194.8,0.1]
[1731000884469,15.7853967,194.9,194.8,0.2]
[1731000884782,15.7853967,194.9,194.8,20.1]
[1731000884964,15.7853967,194.91,194.8,20.1]
[1731000885661,15.7853967,194.9,194.79,0.1]
[1731000885862,15.7853967,194.87,194.79,0.1]
[1731000887061,15.7853967,194.87,194.77,0.12549]
[1731000887352,15.7853967,194.85,194.75,8.10328145]
[1731000888045,15.7853967,194.86,194.75,8.10328145]
[1731000888564,15.7853967,194.87,194.76,20.22549]
[1731000888757,15.7853967,194.87,194.77,20.0]
[1731000889148,15.7853967,194.85,194.77,20.0]
[1731000889850,15.7853967,194.85,194.78,0.12549]
[1731000890155,15.7853967,194.84,194.78,0.12549]
[1731000890558,15.7853967,194.81,194.74,20.528348]
[1731000890767,15.7853967,194.78,194.71,8.10328145]
[1731000890955,15.7853967,194.79,194.71,28.63407045]
[1731000891156,15.7853967,194.8,194.71,28.63407045]
[1731000891373,15.7853967,194.81,194.72,0.12549]
[1731000891667,15.7853967,194.81,194.71,28.63407045]
[1731000892176,39.2062585,194.82,194.72,20.0]
[1731000892355,21.4629,194.82,194.72,28.10328145]
[1731000892670,21.4629,194.82,194.78,15.78945034]
[1731000892873,21.4629,194.82,194.79,0.12549]
[1731000893056,15.78945034,194.81,194.74,15.78945034]
[1731000893376,37.25235034,194.82,194.75,15.78945034]
[1731000894478,15.78945034,194.81,194.71,20.530789]
[1731000894668,15.78945034,194.8,194.73,15.78945034]
[1731000895347,15.78945034,194.8,194.69,20.530789]
[1731000895348,15.78945034,194.8,194.7,0.12549]
[1731000895546,15.78945034,194.81,194.74,15.78945034]
[1731000896156,15.78945034,194.81,194.7,0.12549]
[1731000896157,15.78945034,194.81,194.7,20.12549]
[1731000896356,15.78945034,194.81,194.74,15.78945034]
[1731000896970,15.78945034,194.81,194.7,0.12549]
[1731000896971,15.78945034,194.81,194.7,20.12549]
[1731000897175,15.78945034,194.81,194.74,15.78945034]
[1731000897472,15.78945034,194.81,194.74,15.28945034]
[1731000897654,15.78945034,194.81,194.7,20.12549]
[1731000897854,15.78945034,194.8,194.74,15.78945034]
[1731000898552,15.78945034,194.8,194.7,20.12549]
[1731000898748,15.78945034,194.8,194.73,15.78945034]
[1731000898953,15.78945034,194.8,194.7,20.12549]
[1731000899456,15.78945034,194.74,194.67,15.78945034]
[1731000899658,37.17495034,194.75,194.68,15.78945034]
[1731000900174,37.17495034,194.75,194.63,23.89273145]
[1731000900175,15.78945034,194.74,194.67,15.78945034]
[1731000900356,15.78945034,194.73,194.64,0.12549]
[1731000900551,15.78945034,194.72,194.65,15.78945034]
[1731000900953,21.3855,194.75,194.63,8.10328145]
[1731000900954,15.78945034,194.71,194.64,15.78945034]
[1731000901155,15.78945034,194.65,194.59,15.789451]
[1731000901354,15.78945034,194.63,194.57,15.78945034]
[1731000901566,15.1831,194.61,194.46,0.1]
[1731000901782,15.1831,194.61,194.51,15.789451]
[1731000901962,15.1831,194.61,194.56,15.78945034]
[1731000902364,15.1831,194.61,194.47,15.789451]
[1731000902672,15.1831,194.61,194.58,15.78945034]
[1731000902875,15.1831,194.61,194.32,0.2]
[1731000902876,0.2,194.55,194.32,0.2]
[1731000903071,15.78945034,194.46,194.39,15.78945034]
[1731000903274,15.78945034,194.47,194.4,15.78945034]
[1731000903459,15.78945034,194.47,194.31,6.7548]
[1731000903460,15.78945034,194.46,194.39,15.78945034]
[1731000903658,15.78945034,194.46,194.34,16.3522772]
[1731000903987,15.78945034,194.46,194.39,15.78945034]
[1731000904283,15.78945034,194.46,194.34,0.5628262]
[1731000904284,31.04785034,194.47,194.4,15.78945034]
[1731000904460,15.2584,194.47,194.41,15.78945034]
[1731000905181,31.04785034,194.47,194.4,15.78945034]
[1731000905476,31.04785034,194.47,194.34,0.5628262]
[1731000905675,31.04785034,194.47,194.41,15.78945034]
[1731000905853,31.04785034,194.47,194.34,0.5628262]
[1731000905854,31.04785034,194.47,194.4,15.78945034]
[1731000906059,31.04785034,194.47,194.39,15.78945034]
[1731000906060,15.78945034,194.46,194.39,15.78945034]
[1731000906374,31.04785034,194.47,194.4,15.91494034]
[1731000906556,31.04785034,194.47,194.34,0.5628262]
[1731000906756,31.04785034,194.47,194.4,15.78945034]
[1731000906991,31.04785034,194.47,194.41,0.12549]
[1731000907181,15.78945034,194.46,194.41,0.12549]
[1731000907963,31.04785034,194.47,194.41,0.12549]
[1731000908369,15.2584,194.47,194.41,15.91494034]
[1731000908793,31.04785034,194.47,194.41,15.91494034]
[1731000909282,15.2584,194.47,194.42,15.78945034]
[1731000909458,15.2584,194.47,194.43,15.78945034]
[1731000909662,15.2584,194.47,194.42,15.78945034]
[1731000910472,31.04785034,194.47,194.41,15.91494034]
[1731000910778,15.2584,194.47,194.46,15.78945034]
[1731000911287,31.39575034,194.53,194.46,15.78945034]
[1731000911585,31.39575034,194.53,194.41,0.12549]
[1731000911586,23.776884,194.52,194.41,20.12549]
[1731000911963,23.776884,194.52,194.49,15.78945034]
[1731000912364,23.776884,194.52,194.48,15.78945034]
[1731000912564,23.776884,194.52,194.41,0.12549]
[1731000912764,23.776884,194.52,194.49,15.78945034]
[1731000913082,23.776884,194.52,194.41,0.12549]
[1731000913287,23.776884,194.52,194.49,15.78945034]
[1731000913669,23.776884,194.52,194.41,0.12549]
[1731000914063,23.776884,194.52,194.51,15.78945034]
[1731000914763,23.776884,194.52,194.41,0.12549]
[1731000914968,23.776884,194.52,194.51,15.78945034]
[1731000915168,23.776884,194.52,194.41,0.12549]
[1731000915368,23.776884,194.52,194.51,15.78945034]
[1731000915973,23.776884,194.52,194.41,0.12549]
[1731000916381,23.776884,194.52,194.51,15.78945034]
[1731000916572,23.776884,194.52,194.41,0.12549]
[1731000916888,23.776884,194.52,194.51,15.78945034]
[1731000917079,23.776884,194.52,194.41,0.12549]
[1731000917392,16.5675,194.59,194.51,15.78945034]
[1731000917687,16.5675,194.59,194.45,0.1]
[1731000917688,16.5675,194.59,194.46,0.1]
[1731000917889,16.5675,194.59,194.58,15.78945034]
[1731000918687,40.344384,194.59,194.58,15.78945034]
[1731000918895,23.776884,194.58,194.5,20.0]
[1731000919201,23.776884,194.58,194.57,15.78945034]
[1731000919489,23.776884,194.58,194.5,20.0]
[1731000919687,23.776884,194.58,194.57,15.78945034]
[1731000919992,23.776884,194.58,194.5,20.0]
[1731000920296,23.776884,194.58,194.57,15.78945034]
[1731000922076,23.776884,194.58,194.5,20.0]
[1731000922298,23.776884,194.58,194.57,15.78945034]
[1731000923192,23.776884,194.58,194.5,35.78945034]
[1731000923193,16.2846,194.66,194.58,20.0]
[1731000923369,16.2846,194.66,194.64,15.78945034]
[1731000923568,16.2846,194.66,194.55,7.73256799]
[1731000923569,16.2846,194.66,194.65,15.78945034]
[1731000923993,16.2846,194.66,194.55,7.73256799]
[1731000924191,16.2846,194.66,194.65,15.78945034]
[1731000924691,40.061484,194.66,194.65,15.78945034]
[1731000925090,40.061484,194.66,194.64,15.78945034]
[1731000925267,40.061484,194.66,194.65,15.78945034]
[1731000925468,40.061484,194.66,194.64,15.78945034]
[1731000925689,40.061484,194.66,194.56,20.0]
[1731000925893,40.061484,194.66,194.63,15.78945034]
[1731000927398,40.061484,194.66,194.56,27.73256799]
[1731000927595,16.2846,194.66,194.64,15.78945034]
[1731000928098,16.2846,194.66,194.57,7.73256799]
[1731000928099,16.2846,194.66,194.63,15.78945034]
[1731000929196,16.2846,194.66,194.58,20.0]
[1731000929399,16.2846,194.66,194.63,15.78945034]
[1731000930187,16.2846,194.66,194.58,20.0]
[1731000930584,16.2846,194.66,194.62,15.78945034]
[1731000932602,16.2846,194.66,194.61,15.78945034]
[1731000933285,39.56633434,194.65,194.59,15.78945034]
[1731000933677,15.78945034,194.64,194.58,15.78945034]
[1731000934204,23.776884,194.65,194.6,15.78945034]
[1731000935588,23.776884,194.65,194.62,15.78945034]
[1731000935888,16.2846,194.66,194.62,15.78945034]
[1731000937297,16.2846,194.66,194.61,15.78945034]
[1731000938012,32.07405034,194.66,194.6,15.78945034]
[1731000938192,15.78945034,194.65,194.59,15.78945034]
[1731000938502,15.78945034,194.63,194.57,15.78945034]
[1731000939488,15.78945034,194.64,194.58,15.78945034]
[1731000940802,23.776884,194.64,194.6,15.78945034]
[1731000941107,16.2846,194.66,194.62,15.78945034]
[1731000941515,32.07405034,194.66,194.6,15.78945034]
[1731000941910,15.78945034,194.65,194.6,15.78945034]
[1731000942296,15.78945034,194.64,194.53,20.0]
[1731000942496,1.9304051,194.7,194.62,15.78945034]
[1731000942714,15.78945034,194.65,194.59,15.78945034]
[1731000943310,15.78945034,194.63,194.57,15.78945034]
[1731000943519,39.56633434,194.61,194.55,15.78945034]
[1731000943721,15.78945034,194.6,194.54,15.78945034]
[1731000943918,15.78945034,194.59,194.55,0.12549]
[1731000944211,15.78945034,194.6,194.55,0.12549]
[1731000944389,15.78945034,194.6,194.54,15.78945034]
[1731000944790,15.78945034,194.6,194.55,0.12549]
[1731000945405,15.78945034,194.61,194.55,15.91494034]
[1731000945607,31.42895034,194.62,194.56,15.78945034]
[1731000945897,39.56633434,194.61,194.55,15.91494034]
[1731000946398,23.776884,194.61,194.56,15.78945034]
[1731000946602,15.6395,194.62,194.57,15.78945034]
[1731000947518,15.6395,194.62,194.55,0.12549]
[1731000947519,15.6395,194.62,194.58,15.78945034]
[1731000947898,15.6395,194.62,194.57,15.78945034]
[1731000948412,15.6395,194.62,194.59,15.78945034]
[1731000948719,15.2283,194.66,194.61,15.78945034]
[1731000948905,15.2283,194.66,194.64,15.78945034]
[1731000949099,15.2283,194.66,194.63,15.78945034]
[1731000949305,15.2283,194.66,194.55,0.12549]
[1731000949306,15.78945034,194.65,194.59,15.78945034]
[1731000949809,15.78945034,194.64,194.58,15.78945034]
[1731000950530,39.56633434,194.65,194.58,15.78945034]
[1731000950704,39.56633434,194.65,194.59,15.78945034]
[1731000951498,23.776884,194.65,194.6,15.78945034]
[1731000952423,31.01775034,194.66,194.6,15.78945034]
[1731000952605,15.2283,194.66,194.61,15.78945034]
[1731000953314,15.2283,194.66,194.55,0.12549]
[1731000953315,31.01775034,194.66,194.6,15.78945034]
[1731000953507,15.2283,194.66,194.6,15.78945034]
[1731000953821,31.01775034,194.66,194.58,15.78945034]
[1731000954006,23.776884,194.65,194.6,15.78945034]
[1731000954804,23.776884,194.65,194.55,0.12549]
[1731000955001,23.776884,194.65,194.6,15.78945034]
[1731000955400,15.78945034,194.65,194.59,15.78945034]
[1731000957227,15.78945034,194.65,194.55,0.12549]
[1731000957228,15.78945034,194.65,194.58,15.78945034]
[1731000957524,15.78945034,194.63,194.57,15.78945034]
[1731000957732,15.78945034,194.64,194.57,15.78945034]
[1731000957916,15.78945034,194.64,194.55,0.12549]
[1731000958121,15.78945034,194.64,194.57,15.78945034]
[1731000958319,39.56633434,194.65,194.55,0.12549]
[1731000958626,23.776884,194.65,194.59,15.78945034]
[1731000959200,39.56633434,194.65,194.59,15.78945034]
[1731000959624,39.56633434,194.65,194.55,0.12549]
[1731000959838,39.56633434,194.65,194.59,15.78945034]
[1731000960932,39.56633434,194.65,194.55,0.12549]
[1731000960933,15.78945034,194.63,194.55,0.12549]
[1731000961116,15.78945034,194.64,194.58,15.78945034]
[1731000961520,39.56633434,194.65,194.58,15.78945034]
[1731000961829,39.56633434,194.65,194.55,0.12549]
[1731000962026,39.56633434,194.65,194.59,15.78945034]
[1731000962803,23.776884,194.65,194.55,0.12549]
[1731000963009,23.776884,194.65,194.61,15.78945034]
[1731000963532,23.776884,194.65,194.6,15.78945034]
[1731000964413,23.776884,194.65,194.61,15.78945034]
[1731000964609,23.776884,194.65,194.55,20.12549]
[1731000964610,23.776884,194.65,194.6,15.78945034]
[1731000964919,23.776884,194.65,194.59,15.78945034]
[1731000965423,23.776884,194.65,194.55,0.12549]
[1731000965424,31.01775034,194.66,194.6,15.78945034]
[1731000965625,31.01775034,194.66,194.55,0.12549]
[1731000965626,15.2283,194.66,194.61,15.78945034]
[1731000965824,15.2283,194.66,194.6,15.78945034]
[1731000966227,31.01775034,194.66,194.59,15.78945034]
[1731000967220,31.01775034,194.66,194.6,15.78945034]
[1731000967442,25.35225187,194.66,194.59,10.12395187]
[1731000967737,15.2283,194.66,194.62,10.12395187]
[1731000967916,15.2283,194.66,194.55,20.12549]
[1731000967917,6.5441,194.68,194.55,43.902374]
[1731000968123,6.5441,194.68,194.64,10.12395187]
[1731000968434,6.5441,194.68,194.57,20.0]
[1731000968621,6.5441,194.68,194.64,10.12395187]
[1731000968834,10.12395187,194.67,194.57,20.0]
[1731000969013,10.12395187,194.67,194.62,10.12395187]
[1731000969214,16.66805187,194.68,194.62,10.12395187]
[1731000969517,6.5441,194.68,194.64,10.12395187]
[1731000969846,6.5441,194.68,194.63,10.12395187]
[1731000970023,16.66805187,194.68,194.63,10.12395187]
[1731000970626,10.12395187,194.65,194.56,7.30320688]
[1731000970917,10.12395187,194.64,194.56,7.30320688]
[1731000971114,10.12395187,194.64,194.58,10.12395187]
[1731000971327,15.82185412,194.64,194.58,15.82185412]
[1731000971521,15.82185412,194.65,194.59,15.82185412]
[1731000971835,15.82185412,194.66,194.6,15.82185412]
[1731000972222,15.82185412,194.63,194.57,15.82185412]
[1731000973035,23.776884,194.67,194.53,0.12549]
[1731000973036,15.82185412,194.64,194.53,0.12549]
[1731000973229,15.82185412,194.64,194.58,15.82185412]
[1731000973618,15.82185412,194.66,194.6,15.82185412]
[1731000973924,15.82185412,194.65,194.59,15.82185412]
[1731000974330,15.82185412,194.64,194.58,23.125061]
[1731000974917,22.36595412,194.68,194.61,15.82185412]
[1731000975242,15.82185412,194.67,194.61,15.82185412]
[1731000975539,15.82185412,194.66,194.6,15.82185412]
[1731000976345,15.82185412,194.64,194.59,7.30320688]
[1731000976545,15.82185412,194.62,194.56,15.82185412]
[1731000977815,15.82185412,194.63,194.56,15.82185412]
[1731000978039,15.82185412,194.62,194.56,15.82185412]
[1731000978538,15.82185412,194.61,194.55,15.82185412]
[1731000979919,15.82185412,194.62,194.56,15.82185412]
[1731000980219,6.6441,194.68,194.56,15.82185412]
[1731000980220,15.82185412,194.65,194.59,15.82185412]
[1731000980434,15.82185412,194.66,194.6,15.82185412]
[1731000980636,15.82185412,194.68,194.61,15.82185412]
[1731000980933,15.2856,194.71,194.61,15.82185412]
[1731000980934,15.82185412,194.67,194.61,15.82185412]
[1731000981128,15.82185412,194.66,194.6,15.82185412]
[1731000981334,15.82185412,194.66,194.57,7.30320688]
[1731000981335,15.82185412,194.64,194.58,35.82185412]
[1731000981542,15.82185412,194.64,194.58,20.0]
[1731000981744,15.82185412,194.64,194.58,35.82185412]
[1731000982621,15.82185412,194.65,194.58,35.82185412]
[1731000983438,15.82185412,194.63,194.56,15.82185412]
[1731000983742,15.82185412,194.63,194.57,15.82185412]
[1731000984242,15.82185412,194.62,194.56,15.82185412]
[1731000984915,15.82185412,194.63,194.56,15.82185412]
[1731000985119,23.776884,194.69,194.56,15.82185412]
[1731000985120,15.82185412,194.62,194.57,0.12549]
[1731000987135,15.82185412,194.63,194.57,0.12549]
[1731000987547,15.2856,194.71,194.62,15.82185412]
[1731000987848,15.82185412,194.7,194.63,15.82185412]
[1731000988051,15.82185412,194.69,194.63,15.82185412]
[1731000988226,15.2856,194.71,194.62,7.30320688]
[1731000988227,15.82185412,194.68,194.62,23.125061]
[1731000988934,15.2856,194.71,194.62,23.125061]
[1731000988935,15.82185412,194.69,194.63,15.82185412]
[1731000989446,31.10745412,194.71,194.65,15.82185412]
[1731000989744,15.82185412,194.69,194.63,35.82185412]
[1731000990548,15.82185412,194.69,194.63,20.0]
[1731000991341,15.82185412,194.69,194.63,30.11891445]
[1731000991342,10.11891445,194.69,194.63,30.11891445]
[1731000993157,10.11891445,194.7,194.63,30.11891445]
[1731000993539,10.11891445,194.7,194.64,10.11891445]
[1731000993841,10.11891445,194.7,194.63,10.11891445]
[1731000994658,10.11891445,194.69,194.63,10.11891445]
[1731000994829,10.11891445,194.69,194.63,20.0]
[1731000995529,15.2856,194.71,194.61,30.11891445]
[1731000995831,10.11891445,194.67,194.61,30.11891445]
[1731000997455,10.11891445,194.66,194.61,20.0]
[1731000998338,10.11891445,194.66,194.61,27.30320688]
[1731000998544,15.2856,194.71,194.61,27.30320688]
[1731000998853,10.11891445,194.66,194.61,27.30320688]
[1731000999733,10.11891445,194.65,194.59,30.21891445]
[1731001000047,10.11891445,194.66,194.6,10.11891445]
[1731001000256,10.11891445,194.66,194.61,20.0]
[1731001000548,15.2856,194.71,194.61,37.42212133]
[1731001000754,10.11891445,194.66,194.62,7.30320688]
[1731001001054,10.11891445,194.66,194.63,20.0]
[1731001001640,10.11891445,194.67,194.63,20.0]
[1731001001845,10.11891445,194.66,194.61,20.0]
[1731001003235,10.11891445,194.66,194.61,27.30320688]
[1731001004451,10.11891445,194.66,194.61,20.0]
[1731001007744,10.11891445,194.67,194.62,20.0]
[1731001008057,10.11891445,194.66,194.62,20.0]
[1731001008264,15.2856,194.71,194.61,20.0]
[1731001008555,15.2856,194.71,194.62,7.30320688]
[1731001008556,10.11891445,194.67,194.62,7.30320688]
[1731001009342,10.11891445,194.66,194.62,7.30320688]
[1731001011160,10.11891445,194.67,194.62,7.30320688]
[1731001011358,10.11891445,194.65,194.6,0.12549]
[1731001011563,10.12078721,194.65,194.6,0.12549]
[1731001012145,10.12078721,194.64,194.52,76.2739]
[1731001012464,10.12078721,194.63,194.56,7.30320688]
[1731001012767,10.12078721,194.63,194.56,0.12549]
[1731001013152,10.12078721,194.63,194.54,0.1]
[1731001013153,23.776884,194.55,194.51,1.98861442]
[1731001013358,23.776884,194.51,194.38,7.438]
[1731001013555,23.776884,194.51,194.38,7.338]
[1731001013556,10.12078721,194.48,194.38,7.338]
[1731001013751,10.12078721,194.48,194.39,0.12549]
[1731001014066,10.12078721,194.49,194.38,7.438]
[1731001014242,23.776884,194.51,194.39,0.1]
[1731001014446,10.12078721,194.49,194.39,20.0]
[1731001014964,10.12078721,194.43,194.34,70.6628262]
[1731001015258,23.776884,194.49,194.34,70.7628262]
[1731001015672,23.776884,194.49,194.35,0.1]
[1731001015673,10.12078721,194.44,194.35,0.1]
[1731001015842,10.12078721,194.44,194.35,0.22549]
[1731001016042,10.12078721,194.44,194.35,0.1]
[1731001016443,23.776884,194.49,194.37,0.1]
[1731001016676,10.12078721,194.48,194.39,0.1]
[1731001017166,10.12078721,194.48,194.37,90.1]
[1731001017167,10.12078721,194.47,194.37,90.2]
[1731001017365,15.8442463,194.47,194.39,0.1]
[1731001018362,15.8442463,194.48,194.39,0.1]
[1731001019045,15.8442463,194.48,194.37,90.2]
[1731001019250,15.8442463,194.48,194.39,0.1]
[1731001019656,15.8442463,194.49,194.4,0.1]
[1731001020471,22.7548,194.56,194.41,20.0]
[1731001020961,15.8442463,194.53,194.42,0.1]
[1731001021274,15.8442463,194.5,194.43,20.0]
[1731001021651,15.8442463,194.5,194.39,7.438]
[1731001021652,15.8442463,194.49,194.41,20.0]
[1731001021969,15.8442463,194.47,194.39,20.0]
[1731001022971,15.8442463,194.46,194.39,20.0]
[1731001023375,15.8442463,194.47,194.39,20.0]
[1731001023682,23.776884,194.55,194.39,20.0]
[1731001023856,15.8442463,194.47,194.39,20.0]
[1731001024257,15.8442463,194.46,194.39,20.0]
[1731001024883,15.8442463,194.44,194.39,20.0]
[1731001025181,15.8442463,194.44,194.36,6.099]
[1731001025350,15.8442463,194.45,194.36,6.099]
[1731001025557,15.8442463,194.45,194.36,6.299]
[1731001025859,23.776884,194.55,194.36,6.299]
[1731001026057,15.8442463,194.46,194.36,6.299]
[1731001026464,15.8442463,194.46,194.37,20.0]
[1731001026968,15.8442463,194.45,194.37,20.0]